bitfinex-derivatives/quotes_BNBF0:USTF0_20250101
["timestamp","ask_amount","ask_price","bid_price","bid_amount"]
[1735768868382,0.724,707.96,707.48,1.05648785]
[1735768868582,0.89130561,707.95,707.46,1.05648785]
[1735768868783,0.89130561,707.94,707.46,1.05648785]
[1735768868977,0.89130561,707.93,707.46,1.05648785]
[1735768869181,0.89130561,707.92,707.46,1.05648785]
[1735768869378,0.89130561,707.91,707.46,1.05648785]
[1735768869680,0.89130561,707.91,706.83,2.15699604]
[1735768869681,0.89130561,707.9,707.48,1.05648785]
[1735768869879,0.89130561,707.89,707.48,1.05648785]
[1735768870083,0.89130561,707.88,707.48,1.05648785]
[1735768870284,0.89130561,707.87,707.48,1.05648785]
[1735768870581,0.89130561,707.86,707.5,1.05648785]
[1735768870885,0.89130561,707.85,707.5,1.05648785]
[1735768871086,0.724,707.96,707.5,1.05648785]
[1735768871087,0.89130561,707.84,707.5,1.05648785]
[1735768871285,0.89130561,707.83,707.5,1.05648785]
[1735768871480,0.8913822,707.82,707.5,1.05648785]
[1735768871681,0.8913822,707.81,707.52,1.05648785]
[1735768871882,0.724,707.96,707.52,1.05648785]
[1735768872080,0.89142439,707.95,707.52,1.05648785]
[1735768872283,0.89142439,707.94,707.52,1.05648785]
[1735768872484,0.89142439,707.93,707.52,1.05648785]
[1735768872781,0.89142439,707.92,707.52,1.05648785]
[1735768872987,0.89142439,707.92,706.9,2.15699604]
[1735768872988,0.8914497,707.91,707.55,1.05648785]
[1735768873188,0.8914497,707.9,707.55,1.05648785]
[1735768873487,0.8914497,707.89,707.55,1.05648785]
[1735768873785,0.8914497,707.88,707.55,1.05648785]
[1735768873987,0.8914497,707.87,707.55,1.05648785]
[1735768874182,1.47558709,708.06,707.53,1.05648785]
[1735768874183,1.6154497,707.86,707.53,1.05648785]
[1735768874381,0.8914497,707.85,707.53,1.05648785]
[1735768874581,0.89146625,707.84,707.53,1.05648785]
[1735768874788,0.89146625,707.83,707.53,1.05648785]
[1735768874987,0.89146625,707.82,707.53,1.05648785]
[1735768875183,0.724,707.86,707.54,1.05648785]
[1735768875384,0.89148364,707.85,707.54,1.05648785]
[1735768875587,0.89148364,707.84,707.54,1.05648785]
[1735768875785,0.89148364,707.83,707.54,1.05648785]
[1735768876091,0.89148364,707.82,707.54,1.05648785]
[1735768876384,0.89148364,707.81,707.54,1.05648785]
[1735768876589,0.724,707.86,707.53,1.05648785]
[1735768876785,0.89152286,707.85,707.53,1.05648785]
[1735768876988,0.724,707.86,707.53,1.05648785]
[1735768876989,0.89152286,707.84,707.53,1.05648785]
[1735768877188,0.89152286,707.83,707.53,1.05648785]
[1735768877388,0.724,707.86,707.53,1.05648785]
[1735768877782,0.89153082,707.85,707.53,1.05648785]
[1735768877991,0.89153082,707.84,707.55,1.05648785]
[1735768878289,0.89153082,707.83,707.55,1.05648785]
[1735768878485,0.89154799,707.82,707.55,1.05648785]
[1735768878690,0.724,707.86,707.55,1.05648785]
[1735768878887,0.89153924,707.85,707.55,1.05648785]
[1735768879090,0.724,707.86,707.55,1.05648785]
[1735768879091,0.89153924,707.84,707.55,1.05648785]
[1735768879289,0.89153924,707.83,707.54,1.05648785]
[1735768879490,0.724,707.86,707.54,1.05648785]
[1735768879687,0.89155124,707.85,707.54,1.05648785]
[1735768879889,0.89155124,707.84,707.54,1.05648785]
[1735768880090,0.724,707.86,707.54,1.05648785]
[1735768880290,0.724,707.86,707.53,1.05648785]
[1735768881393,0.724,707.86,707.58,1.05648785]
[1735768882088,0.89148215,707.85,707.58,1.05648785]
[1735768882292,0.724,707.86,707.58,1.05648785]
[1735768882695,0.89142728,707.85,707.58,1.05648785]
[1735768882895,0.89142728,707.84,707.58,1.05648785]
[1735768883193,0.724,707.86,707.58,1.05648785]
[1735768883391,0.89143921,707.85,707.58,1.05648785]
[1735768883694,0.89143921,707.84,707.58,1.05648785]
[1735768883894,0.724,707.86,707.58,1.05648785]
[1735768884094,0.89143028,707.85,707.58,1.05648785]
[1735768884295,0.89143028,707.84,707.58,1.05648785]
[1735768884489,0.724,707.86,707.56,1.05648785]
[1735768884795,0.89142134,707.85,707.56,1.05648785]
[1735768884994,0.89142134,707.84,707.56,1.05648785]
[1735768885295,0.724,707.86,707.52,1.05648785]
[1735768885690,0.89135838,707.85,707.52,1.05648785]
[1735768885894,0.724,707.86,707.52,1.05648785]
[1735768886197,0.89135815,707.85,707.52,1.05648785]
[1735768886392,0.724,707.86,707.52,1.05648785]
[1735768886590,0.89131994,707.85,707.54,1.05648785]
[1735768886889,0.724,707.86,707.54,1.05648785]
[1735768887095,0.89131952,707.85,707.54,1.05648785]
[1735768887288,0.724,707.86,707.54,1.05648785]
[1735768887896,0.89128343,707.85,707.54,1.05648785]
[1735768888097,0.89128343,707.84,707.55,1.05648785]
[1735768888291,0.724,707.86,707.55,1.05648785]
[1735768888292,0.89128343,707.83,707.55,1.05648785]
[1735768888493,0.724,707.86,707.55,1.05648785]
[1735768888694,0.89128411,707.85,707.55,1.05648785]
[1735768888891,0.89128411,707.84,707.55,1.05648785]
[1735768889089,0.89128411,707.83,707.55,1.05648785]
[1735768889293,0.724,707.86,707.55,1.05648785]
[1735768889494,0.89126876,707.85,707.53,1.05648785]
[1735768889696,0.89126876,707.84,707.53,1.05648785]
[1735768889891,0.89126876,707.83,707.53,1.05648785]
[1735768890091,0.724,707.86,707.53,1.05648785]
[1735768890293,0.89126425,707.85,707.53,1.05648785]
[1735768890495,0.89126425,707.84,707.48,1.05648785]
[1735768890794,0.89126425,707.83,707.48,1.05648785]
[1735768890995,0.724,707.86,707.48,1.05648785]
[1735768891191,0.89124287,707.85,707.48,1.05648785]
[1735768891498,0.89124287,707.85,706.82,2.15699604]
[1735768891499,0.89124287,707.84,707.5,1.05648785]
[1735768891695,0.89124287,707.83,707.5,1.05648785]
[1735768891894,0.724,707.86,707.5,1.05648785]
[1735768892095,0.89123554,707.85,707.5,1.05648785]
[1735768892296,0.89123554,707.84,707.5,1.05648785]
[1735768892500,0.89123554,707.83,707.49,1.05648785]
[1735768892698,0.724,707.86,707.49,1.05648785]
[1735768892896,0.89122425,707.85,707.49,1.05648785]
[1735768893200,0.724,707.86,707.49,1.05648785]
[1735768893601,0.89118172,707.85,707.49,1.05648785]
[1735768893899,0.724,707.86,707.49,1.05648785]
[1735768894306,0.89116969,707.85,707.52,1.05648785]
[1735768894503,0.89116969,707.84,707.52,1.05648785]
[1735768894701,0.724,707.86,707.52,1.05648785]
[1735768894902,0.89115639,707.85,707.52,1.05648785]
[1735768895096,0.724,707.86,707.52,1.05648785]
[1735768895702,0.89112029,707.85,707.52,1.05648785]
[1735768895904,0.89112029,707.84,707.52,1.05648785]
[1735768896102,0.724,707.86,707.52,1.05648785]
[1735768896304,0.89113694,707.85,707.52,1.05648785]
[1735768896603,0.89113694,707.85,706.86,2.15699604]
[1735768896604,0.89113694,707.84,707.51,1.05648785]
[1735768896801,0.89113694,707.83,707.51,1.05648785]
[1735768897103,1.4754776,708.13,707.51,1.05648785]
[1735768897404,0.89112889,708.12,707.51,1.05648785]
[1735768897603,0.89112889,708.11,707.51,1.05648785]
[1735768897805,0.89112889,708.1,707.52,1.05648785]
[1735768897996,0.89112889,708.09,707.52,1.05648785]
[1735768898200,0.89112889,708.08,707.52,1.05648785]
[1735768898403,0.89112889,708.07,707.52,1.05648785]
[1735768898604,0.89112889,708.06,707.53,1.05648785]
[1735768898904,0.89112889,708.05,707.53,1.05648785]
[1735768899102,0.89108708,708.04,707.53,1.05648785]
[1735768899405,0.89108708,708.03,707.53,1.05648785]
[1735768899606,0.89108708,708.02,707.6,1.05648785]
[1735768899905,0.89108708,708.01,707.6,1.05648785]
[1735768900101,0.89108708,708.0,707.6,1.05648785]
[1735768900310,0.89108708,707.99,707.6,1.05648785]
[1735768900507,0.89108708,707.98,707.6,1.05648785]
[1735768900702,0.89108708,707.97,707.59,1.05648785]
[1735768900903,0.89108708,707.96,707.59,1.05648785]
[1735768901205,0.89108708,707.95,707.59,1.05648785]
[1735768901398,0.89108708,707.94,707.59,1.05648785]
[1735768901601,0.89108708,707.93,707.59,1.05648785]
[1735768901802,0.89108708,707.92,707.59,1.05648785]
[1735768902005,0.89108708,707.91,707.62,1.05648785]
[1735768902199,0.724,708.12,707.62,1.05648785]
[1735768902200,0.89108708,707.9,707.62,1.05648785]
[1735768902402,0.89108708,707.89,707.62,1.05648785]
[1735768902699,0.89108708,707.88,707.62,1.05648785]
[1735768902896,0.89108708,707.87,707.62,1.05648785]
[1735768903101,0.89108708,707.86,707.65,1.05648785]
[1735768903298,0.89108708,707.85,707.65,1.05648785]
[1735768903501,0.724,708.12,707.65,1.05648785]
[1735768903705,0.89106994,708.11,707.65,1.05648785]
[1735768903906,0.89106994,708.1,707.65,1.05648785]
[1735768904107,0.89106994,708.09,707.65,1.05648785]
[1735768904303,0.89106994,708.08,707.65,1.05648785]
[1735768904602,0.89106994,708.07,707.65,1.05648785]
[1735768904905,0.89106994,708.06,707.65,1.05648785]
[1735768905107,0.724,708.12,707.65,1.05648785]
[1735768905300,0.8910982,708.11,707.65,1.05648785]
[1735768905500,0.8910982,708.1,707.65,1.05648785]
[1735768905705,0.8910982,708.09,707.64,1.05648785]
[1735768905901,0.8910982,708.08,707.64,1.05648785]
[1735768906107,0.8910982,708.07,707.64,1.05648785]
[1735768906301,0.8910982,708.06,707.64,1.05648785]
[1735768906501,0.8910982,708.05,707.64,1.05648785]
[1735768906807,0.8910982,708.04,707.64,1.05648785]
[1735768907006,0.8910982,708.03,707.64,1.05648785]
[1735768907310,0.8910982,708.02,707.64,1.05648785]
[1735768907505,0.8910982,708.01,707.64,1.05648785]
[1735768907807,0.8910982,708.0,707.64,1.05648785]
[1735768908106,1.47550367,708.02,707.64,1.05648785]
[1735768908304,0.89121632,708.01,707.64,1.05648785]
[1735768908503,0.89121632,708.0,707.64,1.05648785]
[1735768908808,0.89121632,707.99,707.62,1.05648785]
[1735768909009,0.89121632,707.98,707.62,1.05648785]
[1735768909208,0.89121632,707.97,707.62,1.05648785]
[1735768909510,0.89121632,707.96,707.62,1.05648785]
[1735768909708,0.89121632,707.95,707.62,1.05648785]
[1735768909908,0.89121632,707.94,707.61,1.05648785]
[1735768910111,0.89121632,707.93,707.61,1.05648785]
[1735768910403,0.89121632,707.92,707.61,1.05648785]
[1735768910609,0.89121632,707.91,707.61,1.05648785]
[1735768910809,0.89121632,707.9,707.61,1.05648785]
[1735768911108,0.89121632,707.89,707.6,1.05648785]
[1735768911305,0.89121632,707.88,707.6,1.05648785]
[1735768911506,0.89121632,707.87,707.6,1.05648785]
[1735768911707,1.47550367,708.02,707.6,1.05648785]
[1735768911708,0.89121632,707.86,707.6,1.05648785]
[1735768911908,0.89121632,707.85,707.6,1.05648785]
[1735768912208,0.89121632,707.84,707.6,1.05648785]
[1735768912401,0.89121632,707.83,707.6,1.05648785]
[1735768912606,0.89121632,707.82,707.6,1.05648785]
[1735768912904,0.89121632,707.81,707.59,1.05648785]
[1735768913109,1.47550367,708.02,707.59,1.05648785]
[1735768913311,0.8914665,708.01,707.59,1.05648785]
[1735768913606,0.8914665,708.0,707.59,1.05648785]
[1735768913810,0.8914665,707.99,707.59,1.05648785]
[1735768914012,0.8914665,707.98,707.61,1.05648785]
[1735768914213,0.8914665,707.97,707.61,1.05648785]
[1735768914511,1.47550367,708.02,707.61,1.05648785]
[1735768914512,0.89157563,707.96,707.61,1.05648785]
[1735768914713,0.89157563,707.95,707.61,1.05648785]
[1735768915014,1.47540462,708.1,707.57,1.05648785]
[1735768915015,0.89157563,707.94,707.57,1.05648785]
[1735768915211,0.89157563,707.93,707.57,1.05648785]
[1735768915406,0.89157563,707.92,707.57,1.05648785]
[1735768915613,0.89157563,707.91,707.57,1.05648785]
[1735768915809,0.89157563,707.9,707.57,1.05648785]
[1735768916014,1.47540462,708.1,707.55,1.05648785]
[1735768916015,0.89157563,707.89,707.55,1.05648785]
[1735768916213,0.89157563,707.88,707.55,1.05648785]
[1735768916515,0.89157563,707.87,707.55,1.05648785]
[1735768916716,0.89157563,707.86,707.55,1.05648785]
[1735768916916,0.89157563,707.86,706.92,2.15699604]
[1735768916917,0.89157563,707.85,707.54,1.05648785]
[1735768917118,0.89157563,707.84,707.54,1.05648785]
[1735768917311,1.47540462,708.1,707.54,1.05648785]
[1735768917513,0.89200064,708.09,707.54,1.05648785]
[1735768917712,0.89200064,708.08,707.54,1.05648785]
[1735768917910,0.89200064,708.07,707.54,1.05648785]
[1735768918217,0.89200064,708.06,707.52,1.05648785]
[1735768918411,0.89200064,708.05,707.52,1.05648785]
[1735768918615,0.89200064,708.04,707.52,1.05648785]
[1735768918809,0.89200064,708.03,707.52,1.05648785]
[1735768919010,0.89200064,708.02,707.52,1.05648785]
[1735768919215,0.89200064,708.01,707.52,1.05648785]
[1735768919413,0.89200064,708.0,707.48,1.05648785]
[1735768919613,0.89200064,707.99,707.48,1.05648785]
[1735768919815,0.89200064,707.98,707.48,1.05648785]
[1735768920016,0.89200064,707.97,707.48,1.05648785]
[1735768920216,0.89200064,707.96,707.48,1.05648785]
[1735768920510,0.89200064,707.95,707.48,1.05648785]
[1735768920715,0.89200064,707.94,707.48,1.05648785]
[1735768920910,0.89210811,707.93,707.48,1.05648785]
[1735768921215,0.89210811,707.92,707.46,1.05648785]
[1735768921416,0.724,708.04,707.46,1.05648785]
[1735768921417,0.89210811,707.91,707.46,1.05648785]
[1735768921612,0.89210811,707.9,707.46,1.05648785]
[1735768921819,0.724,708.04,707.46,1.05648785]
[1735768921820,0.89210811,707.89,707.46,1.05648785]
[1735768922117,0.89210811,707.88,707.46,1.05648785]
[1735768922316,0.89210811,707.87,707.46,1.05648785]
[1735768922519,0.89207779,707.86,707.46,1.05648785]
[1735768922721,0.89207779,707.85,707.46,1.05648785]
[1735768923020,0.8920554,707.84,707.46,1.05648785]
[1735768923219,0.8920554,707.83,707.46,1.05648785]
[1735768923418,0.724,708.04,707.47,1.05648785]
[1735768923419,0.8920554,707.82,707.47,1.05648785]
[1735768923614,0.8920554,707.81,707.47,1.05648785]
[1735768923817,0.8920554,707.8,707.47,1.05648785]
[1735768924014,0.8920554,707.79,707.47,1.05648785]
[1735768924219,0.8920554,707.78,707.47,1.05648785]
[1735768924420,0.8920554,707.77,707.47,1.05648785]
[1735768924620,0.8920554,707.76,707.47,1.05648785]
[1735768924821,0.8920554,707.75,707.47,1.05648785]
[1735768925022,0.8920554,707.74,707.47,1.05648785]
[1735768925215,0.8920554,707.73,707.47,1.05648785]
[1735768925521,0.89202231,707.72,707.45,1.05648785]
[1735768925719,0.89202231,707.71,707.45,1.05648785]
[1735768925920,0.89202231,707.7,707.45,1.05648785]
[1735768926217,0.89201197,707.69,707.45,1.05648785]
[1735768926421,1.47573831,707.95,707.44,1.05648785]
[1735768926616,0.89197632,707.94,707.44,1.05648785]
[1735768926814,0.89197632,707.93,707.44,1.05648785]
[1735768927018,0.89197632,707.92,707.44,1.05648785]
[1735768927220,0.89197632,707.91,707.44,1.05648785]
[1735768927413,0.89197632,707.9,707.44,1.05648785]
[1735768927619,0.89197632,707.89,707.44,1.05648785]
[1735768927919,0.89197632,707.88,707.44,1.05648785]
[1735768928120,0.89197632,707.87,707.44,1.05648785]
[1735768928320,0.89197632,707.86,707.44,1.05648785]
[1735768928521,0.8918954,707.85,707.44,1.05648785]
[1735768928723,0.8918954,707.84,707.43,1.05648785]
[1735768928923,0.8918954,707.83,707.43,1.05648785]
[1735768929124,0.8918954,707.82,707.43,1.05648785]
[1735768929321,0.8918954,707.81,707.43,1.05648785]
[1735768929523,0.8918954,707.8,707.43,1.05648785]
[1735768929822,0.8918954,707.79,707.43,1.05648785]
[1735768930021,0.8918954,707.79,706.83,2.15699604]
[1735768930022,0.8918954,707.78,707.44,1.05648785]
[1735768930223,0.8918954,707.77,707.44,1.05648785]
[1735768930523,0.8918954,707.76,707.44,1.05648785]
[1735768930717,0.8918954,707.75,707.44,1.05648785]
[1735768930920,0.8918954,707.74,707.44,1.05648785]
[1735768931222,0.8918954,707.73,707.44,1.05648785]
[1735768931422,0.8918954,707.72,707.44,1.05648785]
[1735768931625,0.8918954,707.71,707.44,1.05648785]
[1735768931824,0.8918954,707.7,707.44,1.05648785]
[1735768932024,1.47573831,707.95,707.44,1.05648785]
[1735768932224,0.8917455,707.94,707.43,1.05648785]
[1735768932425,0.8917455,707.93,707.43,1.05648785]
[1735768932720,0.8917455,707.92,707.43,1.05648785]
[1735768932921,0.8917455,707.91,707.43,1.05648785]
[1735768933120,0.8917455,707.9,707.43,1.05648785]
[1735768933325,0.8917455,707.89,707.44,1.05648785]
[1735768933522,0.8917455,707.88,707.44,1.05648785]
[1735768933722,0.8917455,707.87,707.44,1.05648785]
[1735768933923,0.8917455,707.86,707.44,1.05648785]
[1735768934128,0.8917455,707.85,707.44,1.05648785]
[1735768934328,0.8917455,707.84,707.45,1.05648785]
[1735768934530,0.8917455,707.83,707.45,1.05648785]
[1735768934731,0.8917455,707.82,707.45,1.05648785]
[1735768934931,0.8917455,707.81,707.45,1.05648785]
[1735768935132,0.8917455,707.8,707.45,1.05648785]
[1735768935432,0.8917455,707.79,707.45,1.05648785]
[1735768935632,0.8917455,707.78,707.45,1.05648785]
[1735768935826,0.8917455,707.77,707.45,1.05648785]
[1735768936032,0.8917455,707.76,707.45,1.05648785]
[1735768936232,0.8917455,707.75,707.48,1.05648785]
[1735768936434,0.8917455,707.74,707.48,1.05648785]
[1735768936634,0.8917455,707.73,707.48,1.05648785]
[1735768936830,0.8917455,707.72,707.48,1.05648785]
[1735768937032,0.8917455,707.71,707.48,1.05648785]
[1735768937338,0.89157399,707.7,707.48,1.05648785]
[1735768937534,1.47573831,707.95,707.48,1.05648785]
[1735768937735,0.89154701,707.94,707.48,1.05648785]
[1735768937938,0.89154701,707.93,707.48,1.05648785]
[1735768938133,0.89154701,707.92,707.48,1.05648785]
[1735768938341,0.89154701,707.91,707.48,1.05648785]
[1735768938532,0.89154701,707.9,707.48,1.05648785]
[1735768938736,0.89154701,707.89,707.47,1.05648785]
[1735768938931,0.89154701,707.88,707.47,1.05648785]
[1735768939131,0.89154701,707.87,707.47,1.05648785]
[1735768939336,0.89154701,707.86,707.47,1.05648785]
[1735768939535,0.89154701,707.85,707.47,1.05648785]
[1735768939840,0.89154701,707.84,707.47,1.05648785]
[1735768940040,0.89154701,707.83,707.47,1.05648785]
[1735768940340,0.89154701,707.82,707.47,1.05648785]
[1735768940542,0.89154701,707.81,707.47,1.05648785]
[1735768940740,1.47573831,707.95,707.47,1.05648785]
[1735768940940,0.89152067,707.94,707.47,1.05648785]
[1735768941141,0.89152067,707.93,707.47,1.05648785]
[1735768941436,0.89154922,707.92,707.47,1.05648785]
[1735768941638,0.89154922,707.91,707.47,1.05648785]
[1735768941841,0.89154922,707.9,707.47,1.05648785]
[1735768942036,0.89154922,707.89,707.47,1.05648785]
[1735768942240,0.89154922,707.88,707.49,1.05648785]
[1735768942435,0.89154922,707.87,707.49,1.05648785]
[1735768942639,0.89154922,707.86,707.49,1.05648785]
[1735768942841,0.89154922,707.85,707.49,1.05648785]
[1735768943136,0.89154922,707.84,707.49,1.05648785]
[1735768943343,0.89154922,707.84,706.95,2.15699604]
[1735768943344,0.8915464,707.83,707.44,1.05648785]
[1735768943541,0.8915464,707.82,707.44,1.05648785]
[1735768943741,0.8915464,707.81,707.44,1.05648785]
[1735768943943,0.89154237,707.8,707.44,1.05648785]
[1735768944138,0.89154237,707.79,707.44,1.05648785]
[1735768944345,0.89154237,707.78,707.44,1.05648785]
[1735768944642,0.89154237,707.77,707.43,1.05648785]
[1735768944840,0.89154237,707.76,707.43,1.05648785]
[1735768945041,0.89154237,707.75,707.43,1.05648785]
[1735768945246,1.47573831,707.95,707.43,1.05648785]
[1735768945247,0.89154237,707.74,707.43,1.05648785]
[1735768945439,0.89154237,707.73,707.43,1.05648785]
[1735768945739,0.89154237,707.72,707.43,1.05648785]
[1735768945944,0.89154237,707.71,707.43,1.05648785]
[1735768946140,0.89154237,707.7,707.38,1.05648785]
[1735768946344,0.89154237,707.69,707.38,1.05648785]
[1735768946542,1.47573831,707.95,707.38,1.05648785]
[1735768946745,0.89152611,707.94,707.38,1.05648785]
[1735768946940,0.89152494,707.93,707.38,1.05648785]
[1735768947146,0.89152494,707.92,707.38,1.05648785]
[1735768947449,0.89152494,707.92,706.71,2.15699604]
[1735768947450,0.89152494,707.91,707.37,1.05648785]
[1735768947640,0.89152494,707.9,707.37,1.05648785]
[1735768947845,0.89152494,707.89,707.37,1.05648785]
[1735768948139,0.89152494,707.88,707.37,1.05648785]
[1735768948343,0.89152494,707.87,707.37,1.05648785]
[1735768948544,0.89152494,707.87,706.68,2.15699604]
[1735768948545,0.89152494,707.86,707.39,1.05648785]
[1735768948746,0.89152494,707.85,707.39,1.05648785]
[1735768948941,0.89152494,707.84,707.39,1.05648785]
[1735768949146,0.89152494,707.83,707.39,1.05648785]
[1735768949446,0.89152494,707.82,707.39,1.05648785]
[1735768949643,0.89152494,707.81,707.39,1.05648785]
[1735768949846,0.89152494,707.8,707.39,1.05648785]
[1735768950149,0.89152494,707.79,707.39,1.05648785]
[1735768950345,0.89152494,707.78,707.39,1.05648785]
[1735768950541,0.724,707.8,707.39,1.05648785]
[1735768950745,0.89154696,707.79,707.41,1.05648785]
[1735768950945,0.89154696,707.78,707.41,1.05648785]
[1735768951145,0.89154696,707.77,707.41,1.05648785]
[1735768951342,0.89154696,707.76,707.41,1.05648785]
[1735768951546,0.89154696,707.75,707.41,1.05648785]
[1735768951747,0.89154696,707.74,707.41,1.05648785]
[1735768951942,0.89154696,707.73,707.41,1.05648785]
[1735768952146,0.89154696,707.72,707.41,1.05648785]
[1735768952345,0.89154696,707.71,707.41,1.05648785]
[1735768952545,0.89154696,707.7,707.41,1.05648785]
[1735768952747,0.89154696,707.69,707.41,1.05648785]
[1735768952944,0.89154696,707.68,707.45,1.05648785]
[1735768953147,0.724,707.8,707.45,1.05648785]
[1735768953348,0.89155016,707.79,707.45,1.05648785]
[1735768953552,0.89155016,707.78,707.45,1.05648785]
[1735768953752,0.89155016,707.77,707.45,1.05648785]
[1735768953951,0.89155016,707.76,707.45,1.05648785]
[1735768954147,0.89155016,707.75,707.45,1.05648785]
[1735768954352,0.89155016,707.74,707.45,1.05648785]
[1735768954550,0.89155016,707.73,707.45,1.05648785]
[1735768954753,0.89155016,707.72,707.45,1.05648785]
[1735768954954,0.89155016,707.71,707.45,1.05648785]
[1735768955154,0.89155016,707.7,707.45,1.05648785]
[1735768955458,0.891615,707.69,707.49,1.05648785]
[1735768955658,0.724,707.8,707.49,1.05648785]
[1735768955952,0.89167264,707.79,707.49,1.05648785]
[1735768956160,0.724,707.8,707.49,1.05648785]
[1735768956355,0.89166651,707.79,707.49,1.05648785]
[1735768956658,0.89166651,707.79,707.0,1.26778542]
[1735768956659,0.89166651,707.78,707.51,1.05648785]
[1735768956856,0.89166651,707.77,707.51,1.05648785]
[1735768957060,0.89166651,707.76,707.51,1.05648785]
[1735768957260,0.724,707.8,707.51,1.05648785]
[1735768957261,0.89166651,707.75,707.51,1.05648785]
[1735768957462,0.89166651,707.74,707.51,1.05648785]
[1735768957757,0.89166651,707.73,707.51,1.05648785]
[1735768957963,0.89166651,707.72,707.55,1.05648785]
[1735768958162,0.89166651,707.71,707.55,1.05648785]
[1735768958462,0.89166651,707.7,707.55,1.05648785]
[1735768958662,0.89166651,707.69,707.55,1.05648785]
[1735768958863,0.89166651,707.68,707.55,1.05648785]
[1735768959161,0.724,707.8,707.5,1.05648785]
[1735768959361,0.89177499,707.79,707.5,1.05648785]
[1735768959562,0.724,707.8,707.5,1.05648785]
[1735768959563,0.89177499,707.78,707.5,1.05648785]
[1735768959758,0.724,707.8,707.5,1.05648785]
[1735768959962,0.89183272,707.79,707.5,1.05648785]
[1735768960160,0.89183272,707.78,707.5,1.05648785]
[1735768960357,0.89183272,707.77,707.5,1.05648785]
[1735768960562,0.89183272,707.76,707.5,1.05648785]
[1735768960858,0.89183272,707.75,707.5,1.05648785]
[1735768961060,0.89183272,707.74,707.5,1.05648785]
[1735768961261,0.89183272,707.73,707.5,1.05648785]
[1735768961462,0.89194635,707.72,707.5,1.05648785]
[1735768961662,0.89194635,707.71,707.5,1.05648785]
[1735768961963,0.89194635,707.7,707.5,1.05648785]
[1735768962265,0.724,707.8,707.5,1.05648785]
[1735768962466,0.8919549,707.79,707.5,1.05648785]
[1735768962661,0.8919549,707.78,707.5,1.05648785]
[1735768962866,0.8919549,707.77,707.51,1.05648785]
[1735768963066,0.8919549,707.76,707.51,1.05648785]
[1735768963266,0.8919549,707.75,707.51,1.05648785]
[1735768963565,0.8919549,707.74,707.51,1.05648785]
[1735768963766,0.8919549,707.73,707.51,1.05648785]
[1735768963966,0.8919549,707.72,707.51,1.05648785]
[1735768964160,0.8919549,707.71,707.51,1.05648785]
[1735768964363,0.8919549,707.7,707.51,1.05648785]
[1735768964560,0.8919549,707.69,707.51,1.05648785]
[1735768964762,0.8919549,707.68,707.51,1.05648785]
[1735768964962,0.8919549,707.67,707.51,1.05648785]
[1735768965166,0.724,707.8,707.54,1.05648785]
[1735768965367,0.89226231,707.79,707.54,1.05648785]
[1735768965662,0.89226231,707.78,707.54,1.05648785]
[1735768965864,0.89226231,707.77,707.54,1.05648785]
[1735768966066,0.89226231,707.76,707.54,1.05648785]
[1735768966265,0.89226231,707.75,707.54,1.05648785]
[1735768966466,0.89226231,707.74,707.53,1.05648785]
[1735768966660,0.89226231,707.73,707.53,1.05648785]
[1735768966865,0.89226231,707.72,707.53,1.05648785]
[1735768967066,0.89226231,707.71,707.53,1.05648785]
[1735768967262,0.89226231,707.7,707.53,1.05648785]
[1735768967464,0.89226231,707.69,707.53,1.05648785]
[1735768967665,0.89226231,707.68,707.54,1.05648785]
[1735768967865,0.89226231,707.67,707.54,1.05648785]
[1735768968061,0.89239589,707.66,707.54,1.05648785]
[1735768968261,0.724,707.8,707.54,1.05648785]
[1735768968466,0.89241181,707.79,707.54,1.05648785]
[1735768968661,0.89241181,707.78,707.56,1.05648785]
[1735768968860,0.724,707.8,707.56,1.05648785]
[1735768969165,0.89242555,707.79,707.56,1.05648785]
[1735768969365,0.89242555,707.78,707.56,1.05648785]
[1735768969566,0.89242555,707.77,707.56,1.05648785]
[1735768969765,0.89242555,707.76,707.56,1.05648785]
[1735768969962,0.89242555,707.75,707.56,1.05648785]
[1735768970159,0.89242555,707.74,707.56,1.05648785]
[1735768970362,0.89242555,707.73,707.56,1.05648785]
[1735768970562,0.89242555,707.72,707.56,1.05648785]
[1735768970766,0.89242555,707.71,707.56,1.05648785]
[1735768970967,0.89242555,707.7,707.56,1.05648785]
[1735768971269,0.89242555,707.69,707.49,1.05648785]
[1735768971565,0.89242555,707.68,707.49,1.05648785]
[1735768971769,0.89242555,707.67,707.49,1.05648785]
[1735768972062,0.89242555,707.66,707.49,1.05648785]
[1735768972270,0.89242555,707.65,707.47,1.05648785]
[1735768972468,0.89242555,707.64,707.47,1.05648785]
[1735768972668,0.89242555,707.63,707.47,1.05648785]
[1735768972861,0.89242555,707.62,707.47,1.05648785]
[1735768973066,0.89242555,707.61,707.47,1.05648785]
[1735768973263,0.89242555,707.61,706.91,2.15699604]
[1735768973264,0.89242555,707.6,707.46,1.05648785]
[1735768973465,0.89242555,707.59,707.46,1.05648785]
[1735768973666,0.89242555,707.58,707.46,1.05648785]
[1735768973867,1.47573831,707.95,707.46,1.05648785]
[1735768974068,1.61656842,707.94,707.44,1.05648785]
[1735768974268,0.89256842,707.93,707.44,1.05648785]